[Event "*** Titled Tuesday Blitz"]
[Site "Chess.com"]
[Date "2021.03.09"]
[Round "10"]
[White "LileKoridze"]
[Black "Etud-otradnoe"]
[Result "1/2-1/2"]
[WhiteElo "2426"]
[BlackElo "2322"]
[TimeControl "180+1"]
[EndTime "12:01:21 PST"]
[Termination "Game drawn by repetition"]

1. d4 {[%clk 0:03:00.9]} 1... d5 {[%clk 0:02:58.6]} 2. c4 {[%clk 0:03:01]} 2...
dxc4 {[%clk 0:02:58.2]} 3. Nc3 {[%clk 0:03:00.9]} 3... a6 {[%clk 0:02:57.6]} 4.
a4 {[%clk 0:03:00.2]} 4... e5 {[%clk 0:02:49.5]} 5. e3 {[%clk 0:02:47.8]} 5...
exd4 {[%clk 0:02:45.5]} 6. exd4 {[%clk 0:02:47.6]} 6... Nc6 {[%clk 0:02:35.3]}
7. Be3 {[%clk 0:02:46.3]} 7... Na5 {[%clk 0:02:00.4]} 8. Nf3 {[%clk 0:02:45.7]}
8... Nf6 {[%clk 0:01:57.3]} 9. Be2 {[%clk 0:02:44.4]} 9... Be6 {[%clk
0:01:55.9]} 10. O-O {[%clk 0:02:43.4]} 10... Be7 {[%clk 0:01:52]} 11. Ne5 {[%clk
0:02:40.4]} 11... Nd5 {[%clk 0:01:33.8]} 12. Nxd5 {[%clk 0:02:16.8]} 12... Bxd5
{[%clk 0:01:22.6]} 13. Rc1 {[%clk 0:02:11.1]} 13... b5 {[%clk 0:01:08.2]} 14.
axb5 {[%clk 0:02:09.8]} 14... axb5 {[%clk 0:01:08.3]} 15. Bf3 {[%clk 0:02:05.4]}
15... O-O {[%clk 0:01:06.5]} 16. Bxd5 {[%clk 0:01:39.2]} 16... Qxd5 {[%clk
0:01:05.6]} 17. Qg4 {[%clk 0:01:39.7]} 17... f5 {[%clk 0:00:47.2]} 18. Qg3
{[%clk 0:01:39]} 18... Bf6 {[%clk 0:00:35]} 19. Rcd1 {[%clk 0:01:32.8]} 19...
Nb3 {[%clk 0:00:34.5]} 20. Kh1 {[%clk 0:01:13.6]} 20... Rfe8 {[%clk 0:00:31.5]}
21. Nf3 {[%clk 0:00:44.2]} 21... Re7 {[%clk 0:00:19.1]} 22. Bf4 {[%clk
0:00:40.5]} 22... c6 {[%clk 0:00:15.3]} 23. Ne5 {[%clk 0:00:34]} 23... Nxd4
{[%clk 0:00:12.5]} 24. Rxd4 {[%clk 0:00:33.8]} 24... Qxd4 {[%clk 0:00:12.3]} 25.
Nxc6 {[%clk 0:00:34.1]} 25... Qxb2 {[%clk 0:00:11.3]} 26. Nxe7+ {[%clk
0:00:33.1]} 26... Kf7 {[%clk 0:00:06.6]} 27. Nxf5 {[%clk 0:00:21.1]} 27... Ra1
{[%clk 0:00:06.4]} 28. Ne3 {[%clk 0:00:15.9]} 28... Rxf1+ {[%clk 0:00:05.5]} 29.
Nxf1 {[%clk 0:00:16.5]} 29... c3 {[%clk 0:00:05.4]} 30. Qe3 {[%clk 0:00:12]}
30... c2 {[%clk 0:00:05.1]} 31. Qc1 {[%clk 0:00:11.4]} 31... Qb1 {[%clk
0:00:05.2]} 32. Kg1 {[%clk 0:00:08.7]} 32... Bb2 {[%clk 0:00:05]} 33. Qd2 {[%clk
0:00:05.8]} 33... c1=Q {[%clk 0:00:04.8]} 34. Qd7+ {[%clk 0:00:05.9]} 34... Kf6
{[%clk 0:00:03.1]} 35. Qd6+ {[%clk 0:00:05.4]} 35... Kf7 {[%clk 0:00:02.5]} 36.
Qd7+ {[%clk 0:00:05.1]} 36... Kg6 {[%clk 0:00:02.8]} 37. Bxc1 {[%clk 0:00:04.6]}
37... Qxc1 {[%clk 0:00:02.4]} 38. Qxb5 {[%clk 0:00:04.4]} 38... Bf6 {[%clk
0:00:02.1]} 39. Qd3+ {[%clk 0:00:04.5]} 39... Kf7 {[%clk 0:00:01.7]} 40. g3
{[%clk 0:00:05]} 40... g6 {[%clk 0:00:02.3]} 41. Kg2 {[%clk 0:00:05.4]} 41...
Kg7 {[%clk 0:00:03]} 42. Ne3 {[%clk 0:00:05.8]} 42... Qc6+ {[%clk 0:00:03.6]}
43. Kf1 {[%clk 0:00:04]} 43... Qe8 {[%clk 0:00:04.2]} 44. Ke2 {[%clk 0:00:04.1]}
44... Qf7 {[%clk 0:00:04.8]} 45. Qd5 {[%clk 0:00:03]} 45... h5 {[%clk
0:00:05.5]} 46. Qxf7+ {[%clk 0:00:02.6]} 46... Kxf7 {[%clk 0:00:05.9]} 47. Kf3
{[%clk 0:00:03.5]} 47... Kg7 {[%clk 0:00:06]} 48. Ke4 {[%clk 0:00:03.8]} 48...
Ba1 {[%clk 0:00:05.5]} 49. f4 {[%clk 0:00:03.8]} 49... Kf7 {[%clk 0:00:05.6]}
50. h3 {[%clk 0:00:04.1]} 50... Bb2 {[%clk 0:00:05.9]} 51. Nd1 {[%clk
0:00:02.2]} 51... Ba1 {[%clk 0:00:05.5]} 52. Kf3 {[%clk 0:00:03.1]} 52... Bf6
{[%clk 0:00:04.6]} 53. Ne3 {[%clk 0:00:04]} 53... Bd4 {[%clk 0:00:04]} 54. Nd5
{[%clk 0:00:04.2]} 54... Bb2 {[%clk 0:00:03.7]} 55. Nb4 {[%clk 0:00:04.3]} 55...
Bc3 {[%clk 0:00:03.3]} 56. Nd3 {[%clk 0:00:04.9]} 56... Bd2 {[%clk 0:00:03.1]}
57. Nc5 {[%clk 0:00:05.1]} 57... Bb4 {[%clk 0:00:02.8]} 58. Ne4 {[%clk 0:00:06]}
58... Ba5 {[%clk 0:00:02.8]} 59. Nd6+ {[%clk 0:00:06.2]} 59... Kg7 {[%clk
0:00:03]} 60. Nc4 {[%clk 0:00:06.8]} 60... Bb4 {[%clk 0:00:03]} 61. Ke4 {[%clk
0:00:07.2]} 61... Bc3 {[%clk 0:00:03.5]} 62. g4 {[%clk 0:00:07]} 62... Be1
{[%clk 0:00:04.1]} 63. f5 {[%clk 0:00:06.9]} 63... hxg4 {[%clk 0:00:03.9]} 64.
hxg4 {[%clk 0:00:07.8]} 64... gxf5+ {[%clk 0:00:04.3]} 65. gxf5 {[%clk
0:00:08.7]} 65... Kf7 {[%clk 0:00:04.7]} 66. Ne5+ {[%clk 0:00:09.3]} 66... Kf8
{[%clk 0:00:03.9]} 67. Kd5 {[%clk 0:00:09]} 67... Bh4 {[%clk 0:00:03.8]} 68. Ke6
{[%clk 0:00:09.4]} 68... Ke8 {[%clk 0:00:04.2]} 69. Ng6 {[%clk 0:00:09.8]} 69...
Bg5 {[%clk 0:00:04.3]} 70. Ne5 {[%clk 0:00:09.8]} 70... Bh4 {[%clk 0:00:03.9]}
71. Nf3 {[%clk 0:00:09.8]} 71... Bd8 {[%clk 0:00:03.4]} 72. Nd4 {[%clk
0:00:08.5]} 72... Bh4 {[%clk 0:00:03]} 73. Nc6 {[%clk 0:00:08.3]} 73... Bg5
{[%clk 0:00:02.6]} 74. Ne5 {[%clk 0:00:08.6]} 74... Bh4 {[%clk 0:00:02.5]}
1/2-1/2

[Event "*** Titled Tuesday Blitz"]
[Site "Chess.com"]
[Date "2021.03.09"]
[Round "10"]
[White "CM_rui"]
[Black "TST2014"]
[Result "0-1"]
[WhiteElo "2377"]
[BlackElo "2595"]
[TimeControl "180+1"]
[EndTime "12:01:25 PST"]
[Termination "TST2014 won by checkmate"]

1. e4 {[%clk 0:03:00.9]} 1... c5 {[%clk 0:02:57]} 2. Nf3 {[%clk 0:03:00.6]} 2...
Nc6 {[%clk 0:02:56.3]} 3. c4 {[%clk 0:02:59.1]} 3... e5 {[%clk 0:02:50.8]} 4.
Nc3 {[%clk 0:02:59.1]} 4... g6 {[%clk 0:02:46.4]} 5. d3 {[%clk 0:02:59]} 5...
Bg7 {[%clk 0:02:46.2]} 6. Be2 {[%clk 0:02:59]} 6... Nge7 {[%clk 0:02:44.9]} 7.
a3 {[%clk 0:02:59.1]} 7... O-O {[%clk 0:02:43.1]} 8. Rb1 {[%clk 0:02:59.7]} 8...
d6 {[%clk 0:02:36.7]} 9. O-O {[%clk 0:03:00.1]} 9... f5 {[%clk 0:02:31]} 10. b4
{[%clk 0:02:58.3]} 10... f4 {[%clk 0:02:29.7]} 11. Bd2 {[%clk 0:02:53.4]} 11...
h6 {[%clk 0:02:27.6]} 12. h3 {[%clk 0:02:49.2]} 12... g5 {[%clk 0:02:27.3]} 13.
Nh2 {[%clk 0:02:48.2]} 13... Nd4 {[%clk 0:02:26.3]} 14. Bg4 {[%clk 0:02:48.1]}
14... f3 {[%clk 0:02:12.6]} 15. Nxf3 {[%clk 0:02:31.2]} 15... Bxg4 {[%clk
0:02:08.6]} 16. hxg4 {[%clk 0:02:32.1]} 16... Nxf3+ {[%clk 0:02:04.6]} 17. gxf3
{[%clk 0:02:33]} 17... Ng6 {[%clk 0:02:03.9]} 18. bxc5 {[%clk 0:02:21.3]} 18...
Nh4 {[%clk 0:02:00]} 19. Nd5 {[%clk 0:02:04.2]} 19... Nxf3+ {[%clk 0:01:56.9]}
20. Kg2 {[%clk 0:02:03.6]} 20... Kh8 {[%clk 0:01:45.7]} 21. Rh1 {[%clk
0:01:55.6]} 21... dxc5 {[%clk 0:01:41.5]} 22. Rh3 {[%clk 0:01:22.5]} 22... Nh4+
{[%clk 0:01:38.9]} 23. Kg1 {[%clk 0:01:19]} 23... b6 {[%clk 0:01:33]} 24. Bc3
{[%clk 0:01:10.5]} 24... Qd7 {[%clk 0:01:28.2]} 25. Qe2 {[%clk 0:01:06.9]} 25...
Nf3+ {[%clk 0:01:25.3]} 26. Kf1 {[%clk 0:00:41]} 26... Qxg4 {[%clk 0:01:24.5]}
27. Rg3 {[%clk 0:00:41.5]} 27... Qh5 {[%clk 0:01:04.7]} 28. Qe3 {[%clk
0:00:17.4]} 28... Qh1+ {[%clk 0:00:57.2]} 29. Ke2 {[%clk 0:00:17.8]} 29... Qxb1
{[%clk 0:00:40.9]} 30. Rxf3 {[%clk 0:00:18.1]} 30... Qc2+ {[%clk 0:00:39.1]} 31.
Bd2 {[%clk 0:00:17.7]} 31... Rxf3 {[%clk 0:00:38.4]} 32. Qxf3 {[%clk 0:00:18.6]}
32... Rf8 {[%clk 0:00:38.5]} 33. Qg3 {[%clk 0:00:16.4]} 33... b5 {[%clk
0:00:34.9]} 34. Ne7 {[%clk 0:00:12.1]} 34... Rf6 {[%clk 0:00:31.3]} 35. Nf5
{[%clk 0:00:09.1]} 35... bxc4 {[%clk 0:00:31.5]} 36. Qxe5 {[%clk 0:00:05.5]}
36... Qxd3+ {[%clk 0:00:30.6]} 37. Ke1 {[%clk 0:00:05.9]} 37... Qb1+ {[%clk
0:00:18.6]} 38. Ke2 {[%clk 0:00:05.4]} 38... Qd3+ {[%clk 0:00:17.3]} 39. Ke1
{[%clk 0:00:05.8]} 39... c3 {[%clk 0:00:17.2]} 40. Bxc3 {[%clk 0:00:04.6]} 40...
Rf7 {[%clk 0:00:08.6]} 41. Nxg7 {[%clk 0:00:04.8]} 41... Qb1+ {[%clk 0:00:06.4]}
42. Ke2 {[%clk 0:00:05.2]} 42... Qc2+ {[%clk 0:00:06.6]} 43. Bd2 {[%clk
0:00:05.5]} 43... Qc4+ {[%clk 0:00:06]} 44. Ke1 {[%clk 0:00:04.8]} 44... Rxg7
{[%clk 0:00:06.5]} 45. Qe8+ {[%clk 0:00:04.6]} 45... Kh7 {[%clk 0:00:06.4]} 46.
Qe5 {[%clk 0:00:05.2]} 46... Qf7 {[%clk 0:00:04.5]} 47. Bc3 {[%clk 0:00:05.2]}
47... Rg8 {[%clk 0:00:05]} 48. Ke2 {[%clk 0:00:03.7]} 48... Re8 {[%clk
0:00:05.2]} 49. Qxc5 {[%clk 0:00:02.9]} 49... Rxe4+ {[%clk 0:00:05.1]} 50. Kf1
{[%clk 0:00:03.6]} 50... Rf4 {[%clk 0:00:05.2]} 51. Qe3 {[%clk 0:00:03.3]} 51...
g4 {[%clk 0:00:05.5]} 52. Qe5 {[%clk 0:00:03.6]} 52... h5 {[%clk 0:00:05.8]} 53.
Qh8+ {[%clk 0:00:03.6]} 53... Kg6 {[%clk 0:00:05.7]} 54. Qe5 {[%clk 0:00:04.1]}
54... Rxf2+ {[%clk 0:00:05.7]} 55. Ke1 {[%clk 0:00:04.8]} 55... Rf5 {[%clk
0:00:06]} 56. Qe4 {[%clk 0:00:04.9]} 56... Kg5 {[%clk 0:00:05.5]} 57. Kd1 {[%clk
0:00:05.4]} 57... Rf1+ {[%clk 0:00:05.2]} 58. Kc2 {[%clk 0:00:05.9]} 58... Qf2+
{[%clk 0:00:05.7]} 59. Bd2+ {[%clk 0:00:06.4]} 59... Kh4 {[%clk 0:00:05.5]} 60.
Qe7+ {[%clk 0:00:06.6]} 60... Kh3 {[%clk 0:00:05.4]} 61. Qg5 {[%clk 0:00:06.5]}
61... Qf5+ {[%clk 0:00:05.7]} 62. Qxf5 {[%clk 0:00:06.8]} 62... Rxf5 {[%clk
0:00:06.4]} 63. Kd3 {[%clk 0:00:07.4]} 63... g3 {[%clk 0:00:07]} 64. Be3 {[%clk
0:00:08.3]} 64... g2 {[%clk 0:00:07.5]} 65. Bg1 {[%clk 0:00:08.3]} 65... Kg3
{[%clk 0:00:07.9]} 66. Bxa7 {[%clk 0:00:08.9]} 66... Rf1 {[%clk 0:00:08.3]} 67.
a4 {[%clk 0:00:09]} 67... h4 {[%clk 0:00:09.2]} 68. a5 {[%clk 0:00:09.1]} 68...
h3 {[%clk 0:00:10.1]} 69. Bb8+ {[%clk 0:00:09.5]} 69... Kg4 {[%clk 0:00:09.7]}
70. Bh2 {[%clk 0:00:10.4]} 70... Ra1 {[%clk 0:00:10.1]} 71. a6 {[%clk
0:00:10.5]} 71... Rxa6 {[%clk 0:00:10.2]} 72. Ke2 {[%clk 0:00:11.4]} 72... Ra2+
{[%clk 0:00:10.4]} 73. Ke1 {[%clk 0:00:11.4]} 73... Kf3 {[%clk 0:00:10.8]} 74.
Bg1 {[%clk 0:00:12.1]} 74... Ra1+ {[%clk 0:00:11.2]} 75. Kd2 {[%clk 0:00:13]}
75... Rxg1 {[%clk 0:00:11.5]} 76. Kd3 {[%clk 0:00:13.9]} 76... h2 {[%clk
0:00:12]} 77. Kd4 {[%clk 0:00:14.8]} 77... h1=N {[%clk 0:00:11.7]} 78. Ke5
{[%clk 0:00:15.7]} 78... Rf1 {[%clk 0:00:12.3]} 79. Kf5 {[%clk 0:00:16.6]} 79...
g1=N {[%clk 0:00:12.4]} 80. Kg5 {[%clk 0:00:17.5]} 80... Ne2 {[%clk 0:00:12.8]}
81. Kh4 {[%clk 0:00:18.4]} 81... Nf2 {[%clk 0:00:13.3]} 82. Kh5 {[%clk 0:00:16]}
82... Nd3 {[%clk 0:00:13.9]} 83. Kg5 {[%clk 0:00:16.9]} 83... Nd4 {[%clk
0:00:14.4]} 84. Kf6 {[%clk 0:00:17.8]} 84... Nb4 {[%clk 0:00:14.9]} 85. Ke7
{[%clk 0:00:18.3]} 85... Nb5 {[%clk 0:00:15.6]} 86. Kd7 {[%clk 0:00:18.5]} 86...
Rc1 {[%clk 0:00:16]} 87. Ke6 {[%clk 0:00:19.4]} 87... Ke4 {[%clk 0:00:16.4]} 88.
Kf6 {[%clk 0:00:19.8]} 88... Rc5 {[%clk 0:00:16.3]} 89. Ke6 {[%clk 0:00:20.4]}
89... Nd4+ {[%clk 0:00:17]} 90. Kd7 {[%clk 0:00:20.8]} 90... Rc6 {[%clk
0:00:17.3]} 91. Kd8 {[%clk 0:00:20.9]} 91... Nd5 {[%clk 0:00:17.9]} 92. Kd7
{[%clk 0:00:21.8]} 92... Ra6 {[%clk 0:00:16.5]} 93. Kc8 {[%clk 0:00:21.8]} 93...
Ke5 {[%clk 0:00:16.7]} 94. Kb7 {[%clk 0:00:22.7]} 94... Rb6+ {[%clk 0:00:16.5]}
95. Ka7 {[%clk 0:00:22.8]} 95... Nb5+ {[%clk 0:00:15.9]} 96. Ka8 {[%clk
0:00:23.5]} 96... Ndc7# {[%clk 0:00:15.9]} 0-1

[Event "*** Titled Tuesday Blitz"]
[Site "Chess.com"]
[Date "2021.03.09"]
[Round "10"]
[White "Aslanov_Umid"]
[Black "UmarovSabir"]
[Result "0-1"]
[WhiteElo "2398"]
[BlackElo "2304"]
[TimeControl "180+1"]
[EndTime "12:01:51 PST"]
[Termination "UmarovSabir won by checkmate"]

1. e4 {[%clk 0:03:00.9]} 1... g6 {[%clk 0:02:59.6]} 2. d4 {[%clk 0:03:00]} 2...
Bg7 {[%clk 0:02:59.1]} 3. Nc3 {[%clk 0:03:00.4]} 3... c6 {[%clk 0:02:58.9]} 4.
Be3 {[%clk 0:03:00.8]} 4... d5 {[%clk 0:02:58.8]} 5. Qd2 {[%clk 0:03:00.5]} 5...
dxe4 {[%clk 0:02:52.4]} 6. Nxe4 {[%clk 0:03:01.4]} 6... Nd7 {[%clk 0:02:49]} 7.
O-O-O {[%clk 0:03:01.3]} 7... Ngf6 {[%clk 0:02:46.8]} 8. Nxf6+ {[%clk
0:03:01.4]} 8... Nxf6 {[%clk 0:02:47.7]} 9. f3 {[%clk 0:02:57.9]} 9... Be6
{[%clk 0:02:27.6]} 10. Kb1 {[%clk 0:02:56.2]} 10... Nd5 {[%clk 0:02:26.2]} 11.
Bh6 {[%clk 0:02:52.6]} 11... Bxh6 {[%clk 0:02:21]} 12. Qxh6 {[%clk 0:02:52.7]}
12... Qa5 {[%clk 0:02:20.6]} 13. Qd2 {[%clk 0:02:18.7]} 13... Qxd2 {[%clk
0:02:12.8]} 14. Rxd2 {[%clk 0:02:19.6]} 14... O-O-O {[%clk 0:02:07.6]} 15. Bc4
{[%clk 0:02:15.8]} 15... Nc3+ {[%clk 0:01:53.4]} 16. bxc3 {[%clk 0:02:15.3]}
16... Bxc4 {[%clk 0:01:54.3]} 17. Ne2 {[%clk 0:02:15.6]} 17... Rd5 {[%clk
0:01:48.5]} 18. Nc1 {[%clk 0:02:14.8]} 18... a5 {[%clk 0:01:46]} 19. Re1 {[%clk
0:02:12]} 19... e6 {[%clk 0:01:36.2]} 20. Nd3 {[%clk 0:02:10.9]} 20... Rb5+
{[%clk 0:01:16.5]} 21. Ka1 {[%clk 0:02:08.4]} 21... Bxd3 {[%clk 0:01:16]} 22.
Rxd3 {[%clk 0:02:01]} 22... Rd8 {[%clk 0:01:03.6]} 23. Re4 {[%clk 0:01:44.1]}
23... a4 {[%clk 0:00:50.2]} 24. a3 {[%clk 0:01:25.9]} 24... Rh5 {[%clk
0:00:43.5]} 25. h3 {[%clk 0:01:22.2]} 25... b5 {[%clk 0:00:41.7]} 26. Rde3
{[%clk 0:01:13.9]} 26... Kc7 {[%clk 0:00:41.1]} 27. Rf4 {[%clk 0:01:13.8]} 27...
Rd7 {[%clk 0:00:40.3]} 28. Kb2 {[%clk 0:01:08.9]} 28... Rhd5 {[%clk 0:00:29.3]}
29. Rh4 {[%clk 0:01:00.9]} 29... h5 {[%clk 0:00:28.7]} 30. Rf4 {[%clk
0:00:56.7]} 30... Kd8 {[%clk 0:00:27.2]} 31. g4 {[%clk 0:00:41.5]} 31... Ke7
{[%clk 0:00:26.1]} 32. Rfe4 {[%clk 0:00:36.7]} 32... Rd8 {[%clk 0:00:24]} 33.
Re5 {[%clk 0:00:35.8]} 33... hxg4 {[%clk 0:00:22.5]} 34. hxg4 {[%clk 0:00:35.2]}
34... Rh8 {[%clk 0:00:21.3]} 35. f4 {[%clk 0:00:32.6]} 35... Rh4 {[%clk
0:00:19.6]} 36. f5 {[%clk 0:00:25]} 36... Rxg4 {[%clk 0:00:16.9]} 37. fxe6
{[%clk 0:00:19.8]} 37... Rxe5 {[%clk 0:00:16.9]} 38. Rxe5 {[%clk 0:00:20.7]}
38... fxe6 {[%clk 0:00:16.9]} 39. Rc5 {[%clk 0:00:20.4]} 39... Kd6 {[%clk
0:00:17.2]} 40. Re5 {[%clk 0:00:20.9]} 40... g5 {[%clk 0:00:17]} 41. Re3 {[%clk
0:00:20.9]} 41... Rg2 {[%clk 0:00:16.8]} 42. c4 {[%clk 0:00:21]} 42... bxc4
{[%clk 0:00:13.6]} 43. Kc3 {[%clk 0:00:21]} 43... g4 {[%clk 0:00:13.7]} 44. Re5
{[%clk 0:00:20]} 44... g3 {[%clk 0:00:12.9]} 45. Rg5 {[%clk 0:00:20.4]} 45...
Ke7 {[%clk 0:00:10.5]} 46. Kxc4 {[%clk 0:00:19.3]} 46... Rxc2+ {[%clk
0:00:09.7]} 47. Kb4 {[%clk 0:00:18.6]} 47... Rd2 {[%clk 0:00:10]} 48. Rxg3
{[%clk 0:00:16.8]} 48... Rxd4+ {[%clk 0:00:10.2]} 49. Kc5 {[%clk 0:00:17.3]}
49... Rd5+ {[%clk 0:00:09]} 50. Kb4 {[%clk 0:00:12.5]} 50... e5 {[%clk
0:00:06.8]} 51. Kxa4 {[%clk 0:00:12.9]} 51... Ke6 {[%clk 0:00:06.3]} 52. Kb4
{[%clk 0:00:13.3]} 52... e4 {[%clk 0:00:06.4]} 53. Kc4 {[%clk 0:00:13]} 53...
Kf5 {[%clk 0:00:05.8]} 54. a4 {[%clk 0:00:09.8]} 54... Rd8 {[%clk 0:00:03.2]}
55. a5 {[%clk 0:00:08]} 55... Kf4 {[%clk 0:00:03.1]} 56. Rh3 {[%clk 0:00:06.5]}
56... e3 {[%clk 0:00:03.1]} 57. Rh7 {[%clk 0:00:06.8]} 57... e2 {[%clk
0:00:03.1]} 58. Re7 {[%clk 0:00:04.9]} 58... Kf3 {[%clk 0:00:03.1]} 59. Rf7+
{[%clk 0:00:05.2]} 59... Kg2 {[%clk 0:00:02.8]} 60. Re7 {[%clk 0:00:04.1]} 60...
Kf2 {[%clk 0:00:03.1]} 61. Rf7+ {[%clk 0:00:04.2]} 61... Ke3 {[%clk 0:00:03.7]}
62. Re7+ {[%clk 0:00:02.8]} 62... Kd2 {[%clk 0:00:04.2]} 63. Kc5 {[%clk
0:00:03.4]} 63... Rd5+ {[%clk 0:00:03.8]} 64. Kb6 {[%clk 0:00:02.1]} 64... Rb5+
{[%clk 0:00:04.2]} 65. Ka6 {[%clk 0:00:01.6]} 65... e1=Q {[%clk 0:00:04.1]} 66.
Rxe1 {[%clk 0:00:02.5]} 66... Kxe1 {[%clk 0:00:04.6]} 67. Ka7 {[%clk 0:00:03.4]}
67... Rxa5+ {[%clk 0:00:04.6]} 68. Kb6 {[%clk 0:00:04.3]} 68... Ra2 {[%clk
0:00:04.4]} 69. Kxc6 {[%clk 0:00:05.2]} 69... Kd2 {[%clk 0:00:04.9]} 70. Kd5
{[%clk 0:00:06.1]} 70... Kd3 {[%clk 0:00:05.1]} 71. Ke6 {[%clk 0:00:07]} 71...
Ra5 {[%clk 0:00:05.5]} 72. Kf6 {[%clk 0:00:07.1]} 72... Ke4 {[%clk 0:00:05.6]}
73. Ke6 {[%clk 0:00:08]} 73... Rd5 {[%clk 0:00:05.8]} 74. Ke7 {[%clk 0:00:08.9]}
74... Ke5 {[%clk 0:00:05.8]} 75. Ke8 {[%clk 0:00:09.6]} 75... Rd6 {[%clk
0:00:05.9]} 76. Kf8 {[%clk 0:00:09.8]} 76... Ke6 {[%clk 0:00:05.2]} 77. Kg7
{[%clk 0:00:10.7]} 77... Kf5 {[%clk 0:00:04.9]} 78. Kf7 {[%clk 0:00:10.9]} 78...
Re6 {[%clk 0:00:05.5]} 79. Kg7 {[%clk 0:00:10.8]} 79... Rf6 {[%clk 0:00:05.4]}
80. Kh7 {[%clk 0:00:11]} 80... Rg6 {[%clk 0:00:05.5]} 81. Kh8 {[%clk 0:00:11.9]}
81... Rg1 {[%clk 0:00:05.4]} 82. Kh7 {[%clk 0:00:12.8]} 82... Kf6 {[%clk
0:00:05.8]} 83. Kh6 {[%clk 0:00:13.4]} 83... Rh1# {[%clk 0:00:05.4]} 0-1